Cogmind - Beta 15 @@@ ROGUE MODE // 2025.06.16 @ 20:19:51 Player: Windjigo Result: Destroyed by as-13691 with Assembled Heavy Rifle Performance ------------- Evolutions (0) 0 Regions Visited (0) 0 Robots Destroyed (2) 10 Value Destroyed (14) 14 Prototype IDs (0) 0 Alien Tech Used (0) 0 Bonus (0) 0 TOTAL SCORE: 24 Bonus ------- None Cogmind --------- Core Integrity 0/250 Matter 159/300 Energy 99/100 System Corruption 0% Temperature Cool (0) Movement Core (50) Location -11/Scrapyard Parts ------- > --- POWER (1) -------- (None) > --- PROPULSION (2) --- (None) > --- UTILITY (2) ------ Launcher Guidance Computer > --- WEAPON (2) ------- (None) > --- INVENTORY (5) ---- Light Ion Engine Small Storage Unit Medium Laser Mini Grenade Launcher Mining Laser Peak State ------------ > --- POWER ------------ Ion Engine > --- PROPULSION ------- Light Treads Light Treads > --- UTILITY ---------- Small Storage Unit Improved Terrain Scanner > --- WEAPON ----------- Assault Rifle Mining Laser > --- INVENTORY -------- Light Ion Engine Wheel Wheel Medium Laser Light Assault Rifle [Rating: 9] Favorites ----------- Power Ion Engine Engine Ion Engine Propulsion Light Treads Treads Light Treads Wheel Wheel Utility Small Storage Unit Device Improved Terrain Scanner Storage Small Storage Unit Processor Launcher Guidance Computer Protection Improved Light Armor Plating Weapon Assault Rifle Ballistic Gun Assault Rifle Special Weapon Mining Laser Build | -11 ------- Run | Yrd Slots Evolved . | . Power . | . Propulsion . | . Utility . | . Weapon . | . Parts Attached 12 | 12 Power 1 | 1 Engine 1 | 1 Core . | . Reactor . | . Propulsion 4 | 4 Treads 2 | 2 Leg . | . Wheel 2 | 2 Hover . | . Flight . | . Utility 4 | 4 Device 1 | 1 Storage 1 | 1 Processor 1 | 1 Hackware . | . Protection 1 | 1 Artifact . | . Weapon 3 | 3 Energy Gun . | . Energy Cannon . | . Ballistic Gun 2 | 2 Ballistic Cannon . | . Launcher . | . Special Weapon 1 | 1 Impact Weapon . | . Slashing Weapon . | . Piercing Weapon . | . Special Melee Weapon . | . Unidentified Prototypes . | . Parts Lost 6 | 6 Power 1 | 1 Propulsion 2 | 2 Utility 1 | 1 Weapon 2 | 2 Highest Loss Streak 6 | 6 To Critical Strikes . | . Average Backups 2 | 2 Power . | . Propulsion . | . Utility . | . Weapon 1 | 1 Tool/Special . | . Unused Backups 2 | 2 Power 1 | 1 Propulsion . | . Utility . | . Weapon 1 | 1 Tool/Special . | . Average Slot Usage (%) . | . Peak Build Rating 9 | 9 Average Rating 5 | 5 On Entrance . | . Naked Turns . | . Heaviest Build 14 | 14 Greatest Support 40 | 40 Greatest Overweight (x) 2 | 2 Average Overweight (x) . | . Largest Inventory Capacity 8 | 8 Average Capacity 6 | 6 Most Carried 6 | 6 Average Carried 2 | 2 Final Capacity 5 | 5 Final Carried 5 | 5 Class Distribution -------------------- None Dominant Class ---------------- None Resources | -11 ----------- Run | Yrd Matter Collected 200 | 200 Remotely . | . Salvage Created 65 | 65 Parts 5 | 5 Haulers Intercepted . | . Recyclers Shooed . | . Parts Field Recycled . | . Retrieved Matter . | . Parts Self-Destructed . | . Prevented . | . Kills | -11 ------- Run | Yrd Combat Hostiles Destroyed 1 | 1 Guns 1 | 1 Classes Destroyed 2 | 2 Tunneler 2 | 2 Assembled 1 | 1 Best Kill Streak 1 | 1 Combat Bots Only 1 | 1 Max Kills in Single Turn 1 | 1 Gunslinging . | . Exploded . | . Melee . | . Uniques/NPCs Destroyed . | . Combat | -11 -------- Run | Yrd Hostile Shots Fired 71 | 71 Missed 32 | 32 Hits 39 | 39 Melee 9 | 9 Projectile 30 | 30 AOE 6 | 6 Critical Strikes 1 | 1 Damage Taken 759 | 759 Core 260 | 260 Absorbed by Shields . | . Core Remaining (%) . | . Volleys Fired 749 | 749 Largest 2 | 2 Hottest 120 | 120 Shots Fired 760 | 760 Gun 17 | 17 Cannon . | . Launcher . | . Special 743 | 743 Kinetic 17 | 17 Thermal 743 | 743 Explosive . | . Electromagnetic . | . Robot Hit Streak 4 | 4 Robot Miss Streak 2 | 2 Penetration Max . | . Secondary Targets . | . Shots Hit Robots 5 | 5 Core Hits 5 | 5 Critical Kills . | . Critical Parts Destroyed . | . Critical Strikes . | . Melee Attacks . | . Impact . | . Slashing . | . Piercing . | . Sneak Attacks . | . Combat Hostiles . | . Follow-up Attacks . | . Damage Inflicted 51 | 51 Guns 51 | 51 Cannons . | . Explosions . | . Melee . | . Ramming . | . Kinetic 51 | 51 Thermal . | . Explosive . | . Electromagnetic . | . Impact . | . Slashing . | . Piercing . | . Highest Corruption . | . Average Corruption . | . Corruption Purged . | . Corruption Blocked . | . Overload Shots . | . Overflow Damage . | . Projectiles . | . Explosions . | . Melee . | . Knockbacks . | . Impact . | . Kinetic . | . Secondary . | . Self-Inflicted Damage . | . Shots . | . Rammed . | . Targets Rammed . | . Kicked . | . Crushed . | . Highest Temperature 310 | 310 Average Temperature 102 | 102 Received Heat Transfer 40 | 40 Effects 12 | 12 Energy Bleed 4 | 4 Interference 7 | 7 Short Circuit 1 | 1 Siege Activations . | . Martial Activations . | . Shielding Activations . | . Robots Disrupted . | . Combat Hostiles . | . Robots Corrupted . | . Combat Hostiles . | . Parts Fried . | . Impact Corruptions . | . Robots Melted . | . Combat Hostiles . | . Parts Melted . | . Heat Transferred . | . Parts Sabotaged . | . Parts Stolen . | . Parts Stripped . | . Power Chain Reactions . | . Alert | -11 ------- Run | Yrd Maximum Alert Level . | . Low Security (%) 100 | 100 Level 1 . | . Level 2 . | . Level 3 . | . Level 4 . | . Level 5 . | . High Security . | . Max Security . | . Peak Influence 10 | 10 Initial . | . Average 4 | 4 Influence Increases 10 | 10 Destroy 0b10 Robot/NC 10 | 10 Influence Decreases 10 | 10 Lost Part 10 | 10 Squads Dispatched . | . Investigation . | . Extermination . | . Reinforcement . | . Assault . | . Garrison . | . Intercept . | . Searches Triggered . | . Construction Impeded . | . Haulers Reinforced . | . Active Scanning Responses . | . Cargo Convoy Interrupts . | . Stealth | -11 --------- Run | Yrd Distress Signals . | . Communications Jammed . | . Distress Signals . | . Times Spotted 25 | 25 Peak Tracking Total 12 | 12 Tactical Retreats 2 | 2 Traps | -11 ------- Run | Yrd Traps Triggered . | . Indirectly . | . Trap Hack Attempts . | . Triggered . | . Disarmed . | . Reprogrammed . | . Reused . | . Traps Extracted . | . Installed . | . Triggered . | . Machines | -11 ---------- Run | Yrd Machines Disabled . | . Max in Single Turn . | . Machines Repaired . | . Machines Dismantled . | . Machines Sabotaged . | . Overloaded Fab Kills . | . Hacking | -11 --------- Run | Yrd Machines Accessed . | . Terminals . | . Fabricators . | . Repair Stations . | . Recycling Units . | . Scanalyzers . | . Garrison Access . | . Total Hacks . | . Successful . | . Failed . | . Catastrophic . | . Database Lockouts . | . Manual . | . Terminals . | . Fabricators . | . Repair Stations . | . Recycling Units . | . Scanalyzers . | . Garrison Access . | . Terminal Hacks . | . Fabricator Hacks . | . Repair Station Hacks . | . Recycling Unit Hacks . | . Scanalyzer . | . Garrison Access Hacks . | . Unauthorized Hacks . | . Terminals . | . Fabricators . | . Repair Stations . | . Recycling Units . | . Scanalyzers . | . Garrison Access . | . Data Cores Recovered . | . Used . | . Hacking Detections . | . Full Trace Events . | . Feedback Events . | . Feedback Blocked . | . Robot Schematics Acquired . | . Robots Built . | . Authchips . | . Time . | . Total Robot Build Rating . | . Part Schematics Acquired . | . Parts Built . | . Authchips . | . Time . | . Total Part Build Rating . | . Parts Repaired . | . Time . | . Parts Recycled . | . Recycled Matter . | . Retrieved Matter . | . Retrieved Components . | . Parts Scanalyzed . | . Part Schematics Acquired . | . Parts Damaged . | . Bothacking | -11 ------------ Run | Yrd Used RIF Installer . | . Robots Hacked . | . Non-combat . | . Combat . | . Robot Hacks Applied . | . Relay Couplers Released . | . Fabnet Peak Effective % . | . Robots Rewired . | . Allies Hacked . | . Hacks Repelled . | . Allies | -11 -------- Run | Yrd Total Allies . | . Largest Group . | . Highest-Rated Group . | . Highest-Rated Ally . | . Total Orders . | . Ally Attacks . | . Total Damage . | . Kills . | . Allies Corrupted . | . Allies Melted . | . Intel | -11 ------- Run | Yrd Active Infowar (turns) 6123 | 6123 Terrain 6123 | 6123 Robot Analysis Total . | . Derelict Logs Recovered . | . Drone Launches . | . Drone Recoveries . | . Exploration | -11 ------------- Run | Yrd Turns Passed 12611 | 12611 Spaces Moved 3415 | 3415 Core 1245 | 1245 Treads 1932 | 1932 Legs . | . Wheels 238 | 238 Hover . | . Flight . | . Fastest Speed 50 | 50 Average Speed 114 | 114 Slowest Speed 160 | 160 Overloaded Moves . | . Propulsion Burnouts . | . Robots Hopped . | . Potential Cave-ins . | . Cave-ins Triggered . | . Exploration Rate (%) 116 | 116 Regions Visited . Branch Regions . Pre-discovered Areas . | . Known Exits Taken . | . Unknown Exits Taken . | . Scrap Searched . | . Spaces Dug 266 | 266 Terrain Destroyed 331 | 331 Melee . | . Projectile 331 | 331 AOE . | . Terrain Rammed . | . Walls Destroyed . | . Machines Disabled . | . Actions | -11 --------- Run | Yrd Total 9871 | 9871 Wait 5677 | 5677 Move 3415 | 3415 Hop . | . Pick Up 14 | 14 Fast Attach 1 | 1 Attach 7 | 7 Detach . | . Swap 5 | 5 Drop 3 | 3 Fire 749 | 749 Melee . | . Ram . | . Kick . | . Crush . | . Escape Stasis . | . Rewire . | . Trap . | . Miscellaneous . | . Route ------- -11/Scrapyard (discovered 1 exit: [*Mat]) History --------- Turn | Location | Event 4200 | -11/Scrapyard | Discovered new exit (range 7) 12516 | -11/Scrapyard | Assembled infested the area 12593 | -11/Scrapyard | Core integrity fell below 50% 12606 | -11/Scrapyard | Core integrity fell below 20% 12612 | -11/Scrapyard | Destroyed by as-13691 with Assembled Heavy Rifle Last Messages --------------- 12574_ The unstable cave ceiling collapses. 12576_ K-01 Serf collects debris. 12577_ Dropped Imp. Terrain Scanner. 12577_ Acquired Launcher Guidance Computer. 12578_ Wheel destroyed. 12582_ The unstable cave ceiling collapses. 12583_ Lgt. Assault Rifle destroyed. 12585_ The unstable cave ceiling collapses. 12585_ Acquired Imp. Light Armor Plating. 12586_ Assault Rifle destroyed. 12589_ The unstable cave ceiling collapses. 12592_ Knocked back. 12592_ as-72153 destroyed. 12602_ The unstable cave ceiling collapses. 12605_ Imp. Light Armor Plating destroyed. 12606_ Acquired 4 matter. 12607_ Acquired 2 matter. 12609_ Acquired Mni. Grenade Launcher. 12610_ as-20807 destroyed. 12611_ Acquired 3 matter. Map ----- +----------------------------------------------------+ | ?###### # ######?#?#?##?##??# #######? | | ## #### ## #?##??###?####?#### ###?#?#? | | ## #?# ### #### ###### ##??##?# | | #### #### ## ###??##### | | #### # ## ##?###### | | # # ############ | | # # # # ######??#?? | | ## ##### # # #?###??##? | | # #######%## ####?##??## | | # # # ! ###??###?## | | ###### # # ############# | | #####??## # # # ##### ## # # | | ?#?#?#### | | ?#?#?##?## a ###### # # ## | | #?#????#?######## # # %% ########??#?#### ### | | ??#??##?#?####### # ##% # ##########??#####?? | | #?????#???# aa# ##?#?##?##? | | #???#?#???# #a # #?######?? | | ????????### = a ##????###? | | ####??#?#?# * ##???#?#?? | | ##??#??# ##????#?#?# | | #???##?########### *%a #############?##????? | | #??????#???####### a# #####???##?#???##???? | | #??????#??#?## # ##???##??#??#???? | | #?????###???## # ###??#?#???#?#?#? | | #??????#?????# @ #?#???#?#?#?#???? | | ####??????#?##??# # # #???#???????#???? | | ????##?#??##????# # # #?#?#?#??##?????? | | ???????#??#?????# # %# #??#####????????# | | ########?#???#?#########! ############ ##??#????? | | #??#??#??#?#????#=!#??# #?##????#?# | | #??????#????????#%=#??# ###??#?#??? | | #??#?????#??#??##**#??# ###??????# | | #?#??#?#?#??????#! #?## #????????? | | #?##?#?????#?##?# ##?# #????????? | | ##?????#????##### #### ##?#??#?### | | ##########??## # ##??????# | | # % =#???# # #??###### | | # ##?## ### ########## # | | #### ### = ##### # | | | | ### ########## # | | ######## ##### < # #?### ## | | ##??# ##??# # #??## ## | | #???# #???########## #???# ## | | ######## #########???????# #???# #### | | # # # ########?# #???# #### | | # # %# ## #?# #???# # | | # ## #?# #?#?# # | | # # # ## ### #?#?# # | +----------------------------------------------------+ Best States ------------- Heat Dissipation 25 Energy Generation 10 Energy Capacity 250 Matter Stores 213 Matter Capacity 300 Sight Range 16 Terrain Scan Range 16 Terrain Scan Density 10 Armor Coverage 150 Evasion (%) 50 Launcher Accuracy 20 Recoil Reduction 2 Item Schematics ----------------- None Robot Schematics ------------------ None Fabricated ------------ Nothing Repaired ---------- Nothing Alien Tech Used ----------------- None Achievements -------------- Curiosity Killed The Cat Challenges ------------ None Game ------ Seed EnergySupercompositeBasin Manual? 0 Play Time 01:27:30 Cumulative 89.7 hours Start 2025.06.16 @ 19:31:33 End 2025.06.16 @ 20:19:51 Sessions 0 Manual Loads 0 Difficulty Rogue Special Mode None Game No. 66 Rogue 66 Adventurer 0 Explorer 0 Win Type - Total 0 Types 0/0/0/0/0/0/0/0/0/0 Lore% 58 Gallery% 47 Achievement% 43 Wizard Run 0 Options --------- Layout 1 ASCII 0 Keyboard 0 Movement Mouse Keybinds 0 Fullscreen 1 Font 24/Smallcaps Map View 50x35 Zoom Use 0% Tactical HUD 1 Map Filters NONE Filters NONE Steam 1 RUN: fadaefca-1247-48e8-b925-7a0f435de0ce